Workbook

Sheet Sheet1
A1: Employee Name | B1: Working Type | C1: Department | D1: First Contact | E1: Years | F1: Number of Contacts | G1: 2010 Sales | H1: 2011 Sales
A2: Jacobs, Florianne | B2: Full time | C2: ADC | D2: 2001-03-02 | E2: =DATEDIF(D2,TODAY(),"Y") -> 15 | F2: 73 | G2: 239900 | H2: 190000 | J2: =E2*F2 -> 1095
A3: Nixon, Randy | B3: Half Time | C3: ADC | D3: 1993-07-09 | E3: 23 | F3: 28 | G3: 290200 | H3: 202400 | J3: =G3+H3+Sheet2!G2 -> 4720228.85
A4: Reese, Marc | B4: Intern | C4: ADC | D4: 1997-12-08 | E4: 18 | F4: 25 | G4: 202200 | H4: 150700
A5: Estes, Mary | B5: Half Time | C5: ADC | D5: 2008-10-23 | E5: 7 | F5: 69 | G5: 342600 | H5: 175900 | J5: =G5*Sheet2!E5+Sheet5!B13 -> 25100589464
A6: Crawford, Ronald | B6: Contract | C6: ADC | D6: 1999-03-19 | E6: 17 | F6: 18 | G6: 129800 | H6: 228500
A7: Perez, Kim | B7: Half Time | C7: Admin Training | D7: 2007-12-07 | E7: 8 | F7: 69 | G7: 209700 | H7: 250700 | J7: =G10+[2]حقوق!$G$5 -> 288949.8
A8: Rush, Lateef | C8: Admin Training | D8: 2007-08-02 | E8: 9 | F8: 29 | G8: 329300 | H8: 311000
A9: Strickland, Rajean | C9: Admin Training | D9: 1988-07-04 | E9: 28 | F9: 69 | G9: 147400 | H9: 223600 | J9: =G10+Sheet2!G3+[2]حقوق!$F$6 -> 1004646.6
A10: Fisher, Maria | C10: Admin Training | D10: 2002-08-23 | E10: 14 | F10: 64 | G10: 255900 | H10: 213500
A11: Robles, Charles | C11: Admin Training | D11: 1993-10-12 | E11: 22 | F11: 48 | G11: 170200 | H11: 305700
A12: Hart, Richard | C12: Admin Training | D12: 1994-04-01 | E12: 22 | F12: 78 | G12: 135800 | H12: 339000
A13: Humphrey, Andrew | C13: Admin Training | D13: 2001-01-09 | E13: 15 | F13: 51 | G13: 244400 | H13: 293500
A14: Chavez, Thomas | C14: Admin Training | D14: 1993-10-14 | E14: 22 | F14: 43 | G14: 167000 | H14: 327200
A15: Morton, Brian | C15: Admin Training | D15: 1989-08-25 | E15: 27 | F15: 36 | G15: 238300 | H15: 300200
A16: Horn, George | C16: Admin Training | D16: 1994-12-16 | E16: 21 | F16: 51 | G16: 214700 | H16: 272100
A17: Carroll, Lesa | C17: Admin Training | D17: 1996-10-24 | E17: 19 | F17: 70 | G17: 278900 | H17: 220100
A18: Hoover, Evangeline | C18: Admin Training | D18: 2008-12-08 | E18: 7 | F18: 54 | G18: 266200 | H18: 127000
A19: Gentry, John | C19: Admin Training | D19: 1994-03-31 | E19: 22 | F19: 76 | G19: 271400 | H19: 132300
A20: Hawkins, Douglas | C20: Admin Training | D20: 1994-09-05 | E20: 22 | F20: 61 | G20: 285100 | H20: 182000
A21: Wilkins, Jesse | C21: Admin Training | D21: 1994-05-27 | E21: 22 | F21: 57 | G21: 246700 | H21: 216000
A22: Gomez, Ed | C22: Admin Training | D22: 2006-04-20 | E22: 10 | F22: 43 | G22: 149000 | H22: 176300
A23: Miles, Kenneth | C23: Admin Training | D23: 1988-07-06 | E23: 28 | F23: 17 | G23: 166700 | H23: 312600
A24: Baker, Barney | C24: Audit Services | D24: 1995-02-09 | E24: 21 | F24: 32 | G24: 164100 | H24: 150000
A25: Carrillo, Robert | C25: Audit Services | D25: 1991-12-02 | E25: 24 | F25: 44 | G25: 228500 | H25: 199500
A26: Salazar, Ruben | C26: Audit Services | D26: 1997-09-16 | E26: 19 | F26: 22 | G26: 281600 | H26: 154200
A27: Harrington, Aron | C27: Audit Services | D27: 1990-06-27 | E27: 26 | F27: 68 | G27: 287900 | H27: 172200
A28: Walker, Mike | C28: Audit Services | D28: 2001-08-03 | E28: 15 | F28: 75 | G28: 319500 | H28: 136500
A29: Franklin, Alicia | C29: Audit Services | D29: 2000-02-21 | E29: 16 | F29: 72 | G29: 199100 | H29: 319100
A30: Ross, Janice | C30: Audit Services | D30: 1996-11-18 | E30: 19 | F30: 39 | G30: 167100 | H30: 142100
A31: Abbott, James | C31: Audit Services | D31: 1997-03-13 | E31: 19 | F31: 69 | G31: 325000 | H31: 184900
A32: Boone, Eric | C32: Audit Services | D32: 1996-07-08 | E32: 20 | F32: 44 | G32: 156200 | H32: 221900
A33: Sparks, Terri | C33: Audit Services | D33: 1993-06-21 | E33: 23 | F33: 21 | G33: 125300 | H33: 302500
A34: Morrison, Julie | C34: Compliance | D34: 2007-11-20 | E34: 8 | F34: 76 | G34: 194500 | H34: 178800
A35: Phillips, Liesl | C35: Compliance | D35: 1995-11-09 | E35: 20 | F35: 78 | G35: 325100 | H35: 228900
A36: Gordon, Diane | C36: Compliance | D36: 2005-12-13 | E36: 10 | F36: 68 | G36: 144100 | H36: 259000
A37: Montgomery, Christopher | C37: Compliance | D37: 1991-03-24 | E37: 25 | F37: 23 | G37: 307500 | H37: 216500
A38: Trevino, Gary | C38: Engineering/Maintenance | D38: 1990-04-30 | E38: 26 | F38: 66 | G38: 296500 | H38: 261800
A39: Merritt, Kevin | C39: Engineering/Maintenance | D39: 1997-03-31 | E39: 19 | F39: 16 | G39: 326500 | H39: 264600
A40: Greene, Alexander | C40: Engineering/Maintenance | D40: 2000-10-05 | E40: 16 | F40: 10 | G40: 186100 | H40: 335800
A41: Ayers, Douglas | C41: Engineering/Maintenance | D41: 1995-06-23 | E41: 21 | F41: 59 | G41: 224100 | H41: 182900
A42: Stevenson, Michael | C42: Engineering/Maintenance | D42: 1989-05-02 | E42: 27 | F42: 65 | G42: 289400 | H42: 273300
A43: Perry, Christopher | C43: Engineering/Maintenance | D43: 1994-08-03 | E43: 22 | F43: 55 | G43: 242200 | H43: 262900
A44: Henry, Craig | C44: Engineering/Maintenance | D44: 2004-04-09 | E44: 12 | F44: 65 | G44: 323000 | H44: 297500
A45: Cameron, John | C45: Engineering/Maintenance | D45: 2003-03-17 | E45: 13 | F45: 52 | G45: 249000 | H45: 189500
A46: Flowers, Kathleen | C46: Engineering/Maintenance | D46: 2001-03-23 | E46: 15 | F46: 13 | G46: 265000 | H46: 218600
A47: West, Jeffrey | C47: Engineering/Maintenance | D47: 1994-11-19 | E47: 21 | F47: 22 | G47: 230400 | H47: 230100
A48: King, Taslim | C48: Engineering/Maintenance | D48: 1991-03-22 | E48: 25 | F48: 88 | G48: 137800 | H48: 142500
A49: Atkinson, Danielle | C49: Engineering/Maintenance | D49: 1996-09-05 | E49: 20 | F49: 16 | G49: 261200 | H49: 143900
A50: Bond, John | C50: Engineering/Maintenance | D50: 1993-12-23 | E50: 22 | F50: 54 | G50: 139300 | H50: 258700
A51: Lewis, Frederick | C51: Engineering/Maintenance | D51: 1997-01-09 | E51: 19 | F51: 50 | G51: 192200 | H51: 125500
A52: Mills, Melissa | C52: Engineering/Maintenance | D52: 2008-10-27 | E52: 7 | F52: 81 | G52: 306600 | H52: 208900
A53: Conway, Brett | C53: Engineering/Maintenance | D53: 1993-10-22 | E53: 22 | F53: 25 | G53: 249200 | H53: 262800
A54: Lopez, Stephen | C54: Engineering/Maintenance | D54: 1997-01-13 | E54: 19 | F54: 52 | G54: 259600 | H54: 347600
A55: Floyd, Eric | C55: Engineering/Maintenance | D55: 2000-04-24 | E55: 16 | F55: 10 | G55: 308600 | H55: 161200
A56: Goodwin, April | C56: Engineering/Maintenance | D56: 1989-05-16 | E56: 27 | F56: 85 | G56: 270400 | H56: 237400
A57: Payne, Vicky | C57: Engineering/Maintenance | D57: 2007-01-11 | E57: 9 | F57: 25 | G57: 325200 | H57: 212800
A58: Randall, Yvonne | C58: Engineering/Maintenance | D58: 1999-01-28 | E58: 17 | F58: 44 | G58: 315500 | H58: 179300
A59: Schroeder, Bennet | C59: Engineering/Maintenance | D59: 1988-07-29 | E59: 28 | F59: 65 | G59: 263100 | H59: 133800
A60: Hobbs, Scott | C60: Engineering/Maintenance | D60: 1991-04-08 | E60: 25 | F60: 81 | G60: 240100 | H60: 162700
A61: Walter, Michael | C61: Engineering/Maintenance | D61: 1994-07-15 | E61: 22 | F61: 49 | G61: 320400 | H61: 242100
A62: Hall, Jenny | C62: Engineering/Maintenance | D62: 1997-02-27 | E62: 19 | F62: 72 | G62: 207400 | H62: 164800
A63: Blankenship, Roger | C63: Engineering/Maintenance | D63: 1990-07-11 | E63: 26 | F63: 17 | G63: 191500 | H63: 273900
A64: Juarez, Neill | C64: Engineering/Maintenance | D64: 1995-09-29 | E64: 21 | F64: 58 | G64: 290000 | H64: 263200
A65: Harris, Brian | C65: Engineering/Maintenance | D65: 1998-03-14 | E65: 18 | F65: 33 | G65: 169700 | H65: 164500
A66: Snyder, Duane | C66: Engineering/Maintenance | D66: 1996-03-05 | E66: =DATEDIF(D66,TODAY(),"Y") -> 20 | F66: 32 | G66: 221400 | H66: 333800
A67: Barton, Barry | C67: Engineering/Maintenance | D67: 1991-01-18 | E67: 25 | F67: 51 | G67: 262900 | H67: 226500
A68: Wallace, Timothy | C68: Engineering/Maintenance | D68: 1989-06-24 | E68: 27 | F68: 64 | G68: 146100 | H68: 178100
A69: Bates, Verna | C69: Engineering/Maintenance | D69: 1997-04-10 | E69: 19 | F69: 55 | G69: 235600 | H69: 189300
A70: Matthews, Diane | C70: Engineering/Maintenance | D70: 2003-02-14 | E70: 13 | F70: 20 | G70: 194200 | H70: 199100
A71: Newton, Leigh | C71: Engineering/Maintenance | D71: 1997-08-31 | E71: 19 | F71: 70 | G71: 217800 | H71: 236700
A72: Barber, Robbie | C72: Engineering/Maintenance | D72: 1993-02-02 | E72: 23 | F72: 34 | G72: 221000 | H72: 137500
A73: Booker, Judith | C73: Engineering/Maintenance | D73: 1989-01-11 | E73: 27 | F73: 25 | G73: 139700 | H73: 179000
A74: Montoya, Lisa | C74: Engineering/Maintenance | D74: 2007-12-17 | E74: 8 | F74: 50 | G74: 338400 | H74: 233700
A75: Vargas, Bryant | C75: Engineering/Maintenance | D75: 1990-10-18 | E75: 25 | F75: 80 | G75: 347800 | H75: 216800
A76: Gray, Mark | C76: Engineering/Maintenance | D76: 1990-03-24 | E76: 26 | F76: 79 | G76: 215100 | H76: 243200
A77: Price, Diana | C77: Engineering/Maintenance | D77: 1988-05-19 | E77: 28 | F77: 29 | G77: 336200 | H77: 286200
A78: Noble, Michael | C78: Engineering/Maintenance | D78: 1992-07-02 | E78: 24 | F78: 42 | G78: 188800 | H78: 187600
A79: Lawrence, Ronald | C79: Engineering/Maintenance | D79: 1998-12-18 | E79: 17 | F79: 10 | G79: 290800 | H79: 205700
A80: Cochran, Andrea | C80: Engineering/Maintenance | D80: 1995-05-25 | E80: 21 | F80: 35 | G80: 291600 | H80: 213500
A81: Stephens, Bonnie | C81: Engineering/Maintenance | D81: 2005-12-29 | E81: 10 | F81: 42 | G81: 179300 | H81: 311700
A82: Garrison, Christopher | C82: Engineering/Maintenance | D82: 1994-12-30 | E82: 21 | F82: 88 | G82: 193500 | H82: 175000
A83: Short, Timothy | C83: Engineering/Maintenance | D83: 1995-10-27 | E83: 20 | F83: 22 | G83: 338900 | H83: 333000
A84: McCoy, Preston | C84: Engineering/Maintenance | D84: 2008-02-05 | E84: 8 | F84: 57 | G84: 178100 | H84: 320000
A85: Wolfe, Keith | C85: Engineering/Maintenance | D85: 1988-11-03 | E85: 27 | F85: 12 | G85: 185000 | H85: 275100
A86: French, Robert | C86: Engineering/Maintenance | D86: 1993-03-17 | E86: 23 | F86: 54 | G86: 304000 | H86: 312900
A87: Monroe, Justin | C87: Engineering/Maintenance | D87: 1989-12-06 | E87: 26 | F87: 30 | G87: 340900 | H87: 281300
A88: Doyle, Leslie | C88: Engineering/Maintenance | D88: 1996-03-18 | E88: 20 | F88: 77 | G88: 181800 | H88: 143800
A89: Dalton, Carol | C89: Engineering/Maintenance | D89: 2000-02-18 | E89: 16 | F89: 82 | G89: 172400 | H89: 231600
A90: Ryan, Ryan | C90: Engineering/Maintenance | D90: 1993-04-12 | E90: 23 | F90: 81 | G90: 143200 | H90: 306200
A91: Johnston, Daniel | C91: Engineering/Maintenance | D91: 2007-08-28 | E91: 9 | F91: 67 | G91: 294500 | H91: 331100
A92: Skinner, Jason | C92: Engineering/Operations | D92: 1995-06-13 | E92: 21 | F92: 65 | G92: 24340 | H92: 25243
A93: Charles, Jeffrey | C93: Engineering/Operations | D93: 1994-11-23 | E93: 21 | F93: 14 | G93: 249055 | H93: 183283
A94: Wolf, Debbie | C94: Environmental Health/Safety | D94: 2000-03-16 | E94: 16 | F94: 78 | G94: 260551 | H94: 55486
A95: Bauer, Chris | C95: Environmental Health/Safety | D95: 2006-10-30 | E95: 9 | F95: 55 | G95: 207140 | H95: 139352
A96: McClain, Steven | C96: Environmental Health/Safety | D96: 2002-08-11 | E96: 14 | F96: 79 | G96: 79512 | H96: 188617
A97: Austin, William | C97: Environmental Health/Safety | D97: 2006-07-10 | E97: 10 | F97: 65 | G97: 244131 | H97: 141915
A98: Farmer, Suzanne | C98: Environmental Health/Safety | D98: 2002-02-17 | E98: 14 | F98: 44 | G98: 283843 | H98: 146336
A99: Stafford, Rhonda | C99: Environmental Health/Safety | D99: 1995-04-03 | E99: 21 | F99: 40 | G99: 263507 | H99: 121642
A100: Glenn, Christopher | C100: Environmental Health/Safety | D100: 2005-04-18 | E100: 11 | F100: 37 | G100: 281769 | H100: 222451
A101: Farrell, Laura | C101: Environmental Health/Safety | D101: 2004-01-30 | E101: 12 | F101: 17 | G101: 177124 | H101: 172563
A102: Sexton, John | C102: Environmental Health/Safety | D102: 2002-12-23 | E102: 13 | F102: 85 | G102: 191508 | H102: 284676
A103: Vazquez, Kenneth | C103: Executive Education | D103: 2008-11-04 | E103: 7 | F103: 39 | G103: 170244 | H103: 114793
A104: Duran, Brian | C104: Executive Education | D104: 2002-10-10 | E104: 13 | F104: 13 | G104: 192799 | H104: 215254
A105: Buckel, Patricia | C105: Executive Education | D105: 2000-12-14 | E105: 15 | F105: 64 | G105: 139005 | H105: 59650
A106: Atkins, Kevin | C106: Executive Education | D106: 2005-11-09 | E106: 10 | F106: 64 | G106: 69320 | H106: 164505
A107: Wiggins, Frank | C107: Executive Education | D107: 1996-01-17 | E107: 20 | F107: 43 | G107: 171326 | H107: 199773
A108: Bradford, Raymond | C108: Executive Education | D108: 2007-09-04 | E108: 9 | F108: 42 | G108: 96508 | H108: 135979
A109: Briggs, Bryan | C109: Executive Education | D109: 2009-02-28 | E109: 7 | F109: 10 | G109: 180738 | H109: 71560
A110: Boyd, Debra | C110: Executive Education | D110: 1999-04-06 | E110: 17 | F110: 80 | G110: 220448 | H110: 105888
A111: Barnes, Grant | C111: Executive Education | D111: 2008-05-12 | E111: 8 | F111: 79 | G111: 157905 | H111: 195263
A112: Tanner, Timothy | C112: Executive Education | D112: 2003-04-04 | E112: 13 | F112: 29 | G112: 234758 | H112: 164263
A113: Castro, Christopher | C113: Executive Education | D113: 2001-11-21 | E113: 14 | F113: 65 | G113: 130549 | H113: 246076
A114: Lloyd, John | C114: Executive Education | D114: 1998-09-18 | E114: 18 | F114: 57 | G114: 214419 | H114: 268881
A115: Ellis, Brenda | C115: Executive Education | D115: 2008-07-16 | E115: 8 | F115: 46 | G115: 58963 | H115: 211522
A116: Alexander, Charles | C116: Executive Education | D116: 1995-12-03 | E116: 20 | F116: 84 | G116: 295200 | H116: 105648
A117: Fox, Ellen | C117: Executive Education | D117: 2003-11-19 | E117: 12 | F117: 29 | G117: 35519 | H117: 51684
A118: Clayton, Gregory | C118: Executive Education | D118: 1993-05-31 | E118: 23 | F118: 63 | G118: 57386 | H118: 37933
A119: Morgan, Patricia | C119: Executive Education | D119: 1993-12-31 | E119: 22 | F119: 57 | G119: 274869 | H119: 116688
A120: Jackson, Eric | C120: Executive Education | D120: 1995-12-07 | E120: 20 | F120: 76 | G120: 57041 | H120: 246119
A121: Scott, Todd | C121: Executive Education | D121: 1998-05-01 | E121: 18 | F121: 49 | G121: 55897 | H121: 135491
A122: Landry, Linda | C122: International Clinical Safety | D122: 2007-04-16 | E122: 9 | F122: 88 | G122: 119124 | H122: 258711
A123: Bailey, Victor | C123: International Clinical Safety | D123: 1993-05-11 | E123: 23 | F123: 82 | G123: 70600 | H123: 117528
A124: Potter, Dawn | C124: International Clinical Safety | D124: 2003-10-11 | E124: 12 | F124: 46 | G124: 275957 | H124: 251554
A125: Becker, Gretchen | C125: International Clinical Safety | D125: 1997-12-26 | E125: 18 | F125: 28 | G125: 142579 | H125: 98093
A126: Orr, Jennifer | C126: International Clinical Safety | D126: 1998-08-06 | E126: 18 | F126: 29 | G126: 283321 | H126: 248331
A127: Park, Timothy | C127: Logistics | D127: 1994-05-15 | E127: 22 | F127: 57 | G127: 168800 | H127: 226695
A128: Vincent, Guy | C128: Logistics | D128: 1993-08-25 | E128: 23 | F128: 24 | G128: 202447 | H128: 196843
A129: Anthony, Robert | C129: Logistics | D129: 2000-07-07 | E129: 16 | F129: 10 | G129: 78551 | H129: 210662
A130: Molina, Michael | C130: Logistics | D130: 2006-09-18 | E130: =DATEDIF(D130,TODAY(),"Y") -> 10 | F130: 55 | G130: 85945 | H130: 136069
A131: Fuller, Brenda | C131: Logistics | D131: 2006-04-12 | E131: 10 | F131: 83 | G131: 176724 | H131: 287418
A132: Lee, Charles | C132: Logistics | D132: 1996-04-23 | E132: 20 | F132: 48 | G132: 151798 | H132: 78194
A133: Chandler, Diane | C133: Logistics | D133: 1997-04-10 | E133: 19 | F133: 52 | G133: 179870 | H133: 221081
A134: Norris, Tamara | C134: Logistics | D134: 1993-08-14 | E134: 23 | F134: 69 | G134: 275646 | H134: 192277
A135: Elliott, Anthony | C135: Logistics | D135: 2008-05-20 | E135: 8 | F135: 23 | G135: 161591 | H135: 63841
A136: Glover, Eugene | C136: Logistics | D136: 2007-01-31 | E136: 9 | F136: 85 | G136: 265376 | H136: 164476
A137: Snow, Desiree | C137: Logistics | D137: 2005-05-01 | E137: 11 | F137: 50 | G137: 132241 | H137: 72461
A138: Olsen, Ewan | C138: Logistics | D138: 2006-08-18 | E138: 10 | F138: 33 | G138: 286661 | H138: 165792
A139: Chang, Gabriel | C139: Logistics | D139: 2006-10-31 | E139: 9 | F139: 36 | G139: 293664 | H139: 215723
A140: Russell, Mark | C140: Logistics | D140: 2006-12-14 | E140: 9 | F140: 16 | G140: 160107 | H140: 254295
A141: Nichols, Nathaniel | C141: Logistics | D141: 2001-05-17 | E141: 15 | F141: 44 | G141: 271539 | H141: 151628
A142: Lyons, Brian | C142: Logistics | D142: 2009-05-05 | E142: 7 | F142: 34 | G142: 40680 | H142: 201606
A143: Taylor, Hector | C143: Logistics | D143: 2008-07-30 | E143: 8 | F143: 51 | G143: 217718 | H143: 219423
A144: Maynard, Susan | C144: Logistics | D144: 2006-10-17 | E144: 9 | F144: 86 | G144: 245919 | H144: 95626
A145: Fletcher, Brian | C145: Logistics | D145: 1999-09-07 | E145: 17 | F145: 87 | G145: 282587 | H145: 158845
A146: Ortiz, Cynthia | C146: Logistics | D146: 1999-02-11 | E146: 17 | F146: 58 | G146: 117645 | H146: 234736
A147: Bradley, David | C147: Logistics | D147: 2000-04-11 | E147: 16 | F147: 34 | G147: 234452 | H147: 170263
A148: Hull, Jeanne | C148: Logistics | D148: 2000-01-29 | E148: 16 | F148: 58 | G148: 291705 | H148: 141237
A149: McCarthy, Ryan | C149: Logistics | D149: 1996-06-28 | E149: 20 | F149: 72 | G149: 222537 | H149: 286196
A150: Mueller, Philip | C150: Logistics | D150: 2005-11-26 | E150: 10 | F150: 67 | G150: 166998 | H150: 183780
A151: Garner, Terry | C151: Logistics | D151: 2004-03-24 | E151: 12 | F151: 80 | G151: 221600 | H151: 74054
A152: Gallegos, Rick | C152: Logistics | D152: 2001-03-01 | E152: 15 | F152: 48 | G152: 151283 | H152: 116907
A153: Townsend, Jerry | C153: Logistics | D153: 1995-12-26 | E153: 20 | F153: 85 | G153: 293611 | H153: 32009
A154: William, William | C154: Logistics | D154: 2001-10-28 | E154: 14 | F154: 46 | G154: 294923 | H154: 88223
A155: Collins, Michael | C155: Logistics | D155: 2000-09-28 | E155: 16 | F155: 44 | G155: 203918 | H155: 195860
A156: Whitaker, Jessica | C156: Logistics | D156: 1996-03-03 | E156: 20 | F156: 14 | G156: 270326 | H156: 201289
A157: Gibson, Janet | C157: Logistics | D157: 2001-02-17 | E157: 15 | F157: 81 | G157: 229869 | H157: 267159
A158: Carlson, Jeremy | C158: Logistics | D158: 1995-06-28 | E158: 21 | F158: 72 | G158: 158924 | H158: 151796
A159: Gutierrez, Regina | C159: Logistics | D159: 1993-08-20 | E159: 23 | F159: 16 | G159: 142878 | H159: 95545
A160: Henson, Debra | C160: Logistics | D160: 2007-07-17 | E160: 9 | F160: 69 | G160: 60618 | H160: 239929
A161: Roy, Margarita | C161: Logistics | D161: 2004-02-10 | E161: 12 | F161: 12 | G161: 174685 | H161: 101487
A162: Young, Benjamin | C162: Logistics | D162: 1994-11-27 | E162: 21 | F162: 80 | G162: 161644 | H162: 298619
A163: Howard, Lisa | C163: Logistics | D163: 2008-07-08 | E163: 8 | F163: 41 | G163: 175923 | H163: 255208
A164: Powers, Tia | C164: Logistics | D164: 2008-11-21 | E164: 7 | F164: 10 | G164: 197939 | H164: 57617
A165: Koch, Danielle | C165: Major Mfg Projects | D165: 2007-12-20 | E165: 8 | F165: 20 | G165: 38597 | H165: 61461
A166: Mack, Barry | C166: Major Mfg Projects | D166: 2005-03-15 | E166: 11 | F166: 48 | G166: 196984 | H166: 132599
A167: Wood, Larry | C167: Major Mfg Projects | D167: 2009-01-10 | E167: 7 | F167: 45 | G167: 31502 | H167: 284021
A168: Dudley, James | C168: Major Mfg Projects | D168: 2007-11-01 | E168: 8 | F168: 72 | G168: 229306 | H168: 264036
A169: Williams, Scott | C169: Major Mfg Projects | D169: 2001-12-25 | E169: 14 | F169: 17 | G169: 266494 | H169: 292488
A170: Norman, Rita | C170: Major Mfg Projects | D170: 1997-11-14 | E170: 18 | F170: 70 | G170: 256429 | H170: 188098
A171: Vega, Alexandra | C171: Major Mfg Projects | D171: 2005-12-29 | E171: 10 | F171: 42 | G171: 223530 | H171: 32456
A172: Wilkinson, Gregory | C172: Major Mfg Projects | D172: 2001-05-17 | E172: 15 | F172: 48 | G172: 178297 | H172: 239778
A173: George, Jessica | C173: Manufacturing | D173: 2006-07-25 | E173: 10 | F173: 58 | G173: 31754 | H173: 183318
A174: Riley, David | C174: Manufacturing | D174: 2001-06-12 | E174: 15 | F174: 53 | G174: 54198 | H174: 123533
A175: Hunt, Norman | C175: Manufacturing | D175: 2002-05-03 | E175: 14 | F175: 10 | G175: 48934 | H175: 162947
A176: Ware, David | C176: Manufacturing | D176: 2000-05-11 | E176: 16 | F176: 31 | G176: 268590 | H176: 172327
A177: Foster, Blane | C177: Manufacturing | D177: 2006-04-01 | E177: 10 | F177: 84 | G177: 273839 | H177: 82686
A178: Bishop, Juan | C178: Manufacturing | D178: 2006-04-17 | E178: 10 | F178: 44 | G178: 106230 | H178: 288692
A179: Contreras, Dean | C179: Manufacturing | D179: 2003-08-03 | E179: 13 | F179: 49 | G179: 281687 | H179: 267541
A180: Hogan, Daniel | C180: Manufacturing | D180: 2006-12-18 | E180: 9 | F180: 15 | G180: 90041 | H180: 126742
A181: Foley, Peter | C181: Manufacturing | D181: 2003-11-02 | E181: 12 | F181: 71 | G181: 103205 | H181: 89366
A182: McDaniel, Tamara | C182: Manufacturing | D182: 2001-08-10 | E182: 15 | F182: 28 | G182: 136896 | H182: 143984
A183: Munoz, Michael | C183: Manufacturing | D183: 1993-05-17 | E183: 23 | F183: 35 | G183: 87906 | H183: 241318
A184: White, Daniel | C184: Manufacturing | D184: 2000-09-30 | E184: 16 | F184: 54 | G184: 42105 | H184: 85775
A185: Osborne, Bill | C185: Manufacturing | D185: 2006-02-03 | E185: 10 | F185: 40 | G185: 292882 | H185: 210307
A186: Richards, Richard | C186: Manufacturing | D186: 1999-07-14 | E186: 17 | F186: 37 | G186: 263964 | H186: 223788
A187: Carr, Susan | C187: Manufacturing | D187: 2003-05-11 | E187: 13 | F187: 14 | G187: 170069 | H187: 96729
A188: Harmon, Paul | C188: Manufacturing | D188: 1994-04-20 | E188: 22 | F188: 18 | G188: 252941 | H188: 187359
A189: Pierce, Karen | C189: Manufacturing | D189: 2000-09-19 | E189: 16 | F189: 41 | G189: 97594 | H189: 226819
A190: Roberson, Eileen | C190: Manufacturing | D190: 2007-11-17 | E190: 8 | F190: 54 | G190: 221835 | H190: 90515
A191: McDonald, Debra | C191: Manufacturing | D191: 1996-05-20 | E191: 20 | F191: 16 | G191: 41472 | H191: 42541
A192: Kelley, Nancy | C192: Manufacturing | D192: 2008-11-12 | E192: 7 | F192: 78 | G192: 244089 | H192: 94689
A193: Avila, Jody | C193: Manufacturing | D193: 2005-12-22 | E193: 10 | F193: 79 | G193: 164205 | H193: 117366
A194: Dennis, Paul | C194: Manufacturing | D194: 2003-01-30 | E194: =DATEDIF(D194,TODAY(),"Y") -> 13 | F194: 27 | G194: 146684 | H194: 241250
A195: Leon, Emily | C195: Manufacturing | D195: 2007-12-28 | E195: 8 | F195: 59 | G195: 295159 | H195: 146947
A196: Kemp, Holly | C196: Manufacturing | D196: 1999-02-22 | E196: 17 | F196: 75 | G196: 31867 | H196: 226276
A197: Melton, Scott | C197: Manufacturing | D197: 2003-03-04 | E197: 13 | F197: 83 | G197: 293109 | H197: 140915
A198: Mendoza, Bobby | C198: Manufacturing | D198: 1994-03-28 | E198: 22 | F198: 41 | G198: 41286 | H198: 246878
A199: Solomon, Michael | C199: Manufacturing | D199: 2003-08-31 | E199: 13 | F199: 52 | G199: 136683 | H199: 49203
A200: Pittman, Bacardi | C200: Manufacturing | D200: 2001-01-08 | E200: 15 | F200: 81 | G200: 114315 | H200: 28438
... 531 more rows

Sheet Sheet2
A1: AuthorID | B1: Initial Contract Date | C1: Years Under Contract | D1: Number of Books in Print | E1: Number of Books Sold | F1: Sell Price | G1: Income Earned | H1: Early Producer? | I1: 5+ Years or High Producer? | J1: 5+ Years and 350K+ Units Sold or $1M+ Earned? | K1: Royalty Rate
A2: 1005 | B2: 2011-01-21 | C2: 1.396303901 | D2: 25 | E2: 529115 | F2: 7.99 | G2: =Number_of_Books_Sold*Sell_Price -> 4227628.85 | H2: =IF(AND(Years_Under_Contract<2,Number_of_Books_in_Print>4)=TRUE,"Yes","No") -> Yes | I2: =IF(OR(Years_Under_Contract>5,Number_of_Books_in_Print>=10)=TRUE,"Yes","No") -> Yes | J2: =IF(AND(Years_Under_Contract>5,OR(Number_of_Books_in_Print>350000,Income_Earned>=1000000))=TRUE,"Yes","No") -> No | K2: =IF(AND(Years_Under_Contract>5,OR(Number_of_Books_in_Print>10,Income_Earned>1000000)),0.2,IF(Number_of_Books_in_Print>10,0.15,0.09)) -> 0.15
A3: 1006 | B3: 2000-10-15 | C3: 11.66324435 | D3: 3 | E3: 105627 | F3: 7 | G3: =Number_of_Books_Sold*Sell_Price -> 739389 | H3: No | I3: Yes | J3: No | K3: 0.09
A4: 1008 | B4: 2010-04-12 | C4: 2.173853525 | D4: 6 | E4: 58770 | F4: 2.99 | G4: 175722.3 | H4: No | I4: No | J4: No | K4: 0.09
A5: 1011 | B5: 2001-09-24 | C5: 10.72142368 | D5: 11 | E5: 73265 | F5: 3.99 | G5: 292327.35 | H5: No | I5: Yes | J5: No | K5: 0.2
A6: 1012 | B6: 2009-05-17 | C6: 3.077344285 | D6: 13 | E6: 511768 | F6: 2.99 | G6: 1530186.32 | H6: No | I6: Yes | J6: No | K6: 0.15
A7: 1013 | B7: 2006-10-16 | C7: 5.661875428 | D7: 18 | E7: 643517 | F7: 5.99 | G7: 3854666.83 | H7: No | I7: Yes | J7: Yes | K7: 0.2
A8: 1013 | B8: 2003-07-22 | C8: 8.898015058 | D8: 8 | E8: 194127 | F8: 7.99 | G8: 1551074.73 | H8: No | I8: Yes | J8: Yes | K8: 0.2
A9: 1014 | B9: 2006-03-07 | C9: 6.272416153 | D9: 9 | E9: 268650 | F9: 15.99 | G9: 4295713.5 | H9: No | I9: Yes | J9: Yes | K9: 0.2
A10: 1015 | B10: 2009-05-03 | C10: 3.115674196 | D10: 4 | E10: 479764 | F10: 3.99 | G10: 1914258.36 | H10: No | I10: No | J10: No | K10: 0.09
A11: 1015 | B11: 2011-08-16 | C11: 0.8295687885 | D11: 6 | E11: 86089 | F11: 10.99 | G11: 946118.11 | H11: Yes | I11: No | J11: No | K11: 0.09
A12: 1016 | B12: 2000-04-02 | C12: 12.19986311 | D12: 10 | E12: 474253 | F12: 10.99 | G12: 5212040.47 | H12: No | I12: Yes | J12: Yes | K12: 0.2
A13: 1017 | B13: 2011-03-22 | C13: 1.232032854 | D13: 6 | E13: 59438 | F13: 23.99 | G13: 1425917.62 | H13: Yes | I13: No | J13: No | K13: 0.09
A14: 1029 | B14: 2002-12-25 | C14: 9.470225873 | D14: 21 | E14: 352477 | F14: 9.99 | G14: 3521245.23 | H14: No | I14: Yes | J14: Yes | K14: 0.2
A15: 1029 | B15: 2005-09-09 | C15: 6.762491444 | D15: 14 | E15: 559978 | F15: 9.99 | G15: 5594180.22 | H15: No | I15: Yes | J15: Yes | K15: 0.2
A16: 1032 | B16: 2006-01-06 | C16: 6.436687201 | D16: 25 | E16: 595341 | F16: 5.99 | G16: 3566092.59 | H16: No | I16: Yes | J16: Yes | K16: 0.2
A17: 1033 | B17: 2000-11-29 | C17: 11.54004107 | D17: 18 | E17: 320612 | F17: 2.99 | G17: 958629.88 | H17: No | I17: Yes | J17: No | K17: 0.2
A18: 1034 | B18: 2012-02-06 | C18: 0.3531827515 | D18: 9 | E18: 269443 | F18: 10.99 | G18: 2961178.57 | H18: Yes | I18: No | J18: No | K18: 0.09
A19: 1034 | B19: 2002-01-17 | C19: 10.40657084 | D19: 25 | E19: 26430 | F19: 10.99 | G19: 290465.7 | H19: No | I19: Yes | J19: No | K19: 0.2
A20: 1034 | B20: 2005-12-30 | C20: 6.455852156 | D20: 19 | E20: 208998 | F20: 5.99 | G20: 1251898.02 | H20: No | I20: Yes | J20: Yes | K20: 0.2
A21: 1034 | B21: 2007-11-22 | C21: 4.561259411 | D21: 1 | E21: 246559 | F21: 5.99 | G21: 1476888.41 | H21: No | I21: No | J21: No | K21: 0.09
A22: 1037 | B22: 2000-07-01 | C22: 11.95345654 | D22: 10 | E22: 677940 | F22: 7.99 | G22: 5416740.6 | H22: No | I22: Yes | J22: Yes | K22: 0.2
A23: 1038 | B23: 2002-03-09 | C23: 10.26694045 | D23: 25 | E23: 429973 | F23: 12.99 | G23: 5585349.27 | H23: No | I23: Yes | J23: Yes | K23: 0.2
A24: 1039 | B24: 2005-04-20 | C24: 7.151266256 | D24: 14 | E24: 32090 | F24: 5.99 | G24: 192219.1 | H24: No | I24: Yes | J24: No | K24: 0.2
A25: 1040 | B25: 2005-06-28 | C25: 6.962354552 | D25: 21 | E25: 150897 | F25: 7.99 | G25: 1205667.03 | H25: No | I25: Yes | J25: Yes | K25: 0.2
A26: 1042 | B26: 2007-03-20 | C26: 5.237508556 | D26: 15 | E26: 600871 | F26: 2.99 | G26: 1796604.29 | H26: No | I26: Yes | J26: Yes | K26: 0.2
A27: 1048 | B27: 2001-12-13 | C27: 10.50239562 | D27: 13 | E27: 269172 | F27: 5.99 | G27: 1612340.28 | H27: No | I27: Yes | J27: Yes | K27: 0.2
A28: 1049 | B28: 2002-04-04 | C28: 10.19575633 | D28: 11 | E28: 266381 | F28: 10.99 | G28: 2927527.19 | H28: No | I28: Yes | J28: Yes | K28: 0.2
A29: 1055 | B29: 2007-05-02 | C29: 5.119780972 | D29: 7 | E29: 248775 | F29: 2.99 | G29: 743837.25 | H29: No | I29: Yes | J29: No | K29: 0.09
A30: 1056 | B30: 2010-05-20 | C30: 2.069815195 | D30: 24 | E30: 128922 | F30: 23.99 | G30: 3092838.78 | H30: No | I30: Yes | J30: No | K30: 0.15
A31: 1057 | B31: 2000-11-17 | C31: 11.57289528 | D31: 22 | E31: 314930 | F31: 12.99 | G31: 4090940.7 | H31: No | I31: Yes | J31: Yes | K31: 0.2
A32: 1062 | B32: 2004-01-13 | C32: 8.41889117 | D32: 18 | E32: 163707 | F32: 12.99 | G32: 2126553.93 | H32: No | I32: Yes | J32: Yes | K32: 0.2
A33: 1063 | B33: 2008-03-17 | C33: 4.24366872 | D33: 7 | E33: 202036 | F33: 7.99 | G33: 1614267.64 | H33: No | I33: No | J33: No | K33: 0.09
A34: 1065 | B34: 2001-09-18 | C34: 10.73785079 | D34: 5 | E34: 635933 | F34: 2.99 | G34: 1901439.67 | H34: No | I34: Yes | J34: Yes | K34: 0.2
A35: 1066 | B35: 2002-09-18 | C35: 9.73853525 | D35: 21 | E35: 440249 | F35: 2.99 | G35: 1316344.51 | H35: No | I35: Yes | J35: Yes | K35: 0.2
A36: 1067 | B36: 2012-02-27 | C36: 0.295687885 | D36: 21 | E36: 488211 | F36: 10.99 | G36: 5365438.89 | H36: Yes | I36: Yes | J36: No | K36: 0.15
A37: 1068 | B37: 2004-01-18 | C37: 8.405201916 | D37: 5 | E37: 233679 | F37: 5.99 | G37: 1399737.21 | H37: No | I37: Yes | J37: Yes | K37: 0.2
A38: 1069 | B38: 2005-05-11 | C38: 7.093771389 | D38: 5 | E38: 647964 | F38: 2.99 | G38: 1937412.36 | H38: No | I38: Yes | J38: Yes | K38: 0.2
A39: 1069 | B39: 2001-04-15 | C39: 11.16495551 | D39: 23 | E39: 502085 | F39: 2.99 | G39: 1501234.15 | H39: No | I39: Yes | J39: Yes | K39: 0.2
A40: 1070 | B40: 2002-07-21 | C40: 9.900068446 | D40: 24 | E40: 297144 | F40: 7.99 | G40: 2374180.56 | H40: No | I40: Yes | J40: Yes | K40: 0.2
A41: 1076 | B41: 2007-03-15 | C41: 5.25119781 | D41: 20 | E41: 330616 | F41: 12.99 | G41: 4294701.84 | H41: No | I41: Yes | J41: Yes | K41: 0.2
A42: 1077 | B42: 2006-12-02 | C42: 5.533196441 | D42: 10 | E42: 582250 | F42: 5.99 | G42: 3487677.5 | H42: No | I42: Yes | J42: Yes | K42: 0.2
A43: 1078 | B43: 2000-04-22 | C43: 12.14510609 | D43: 1 | E43: 580635 | F43: 15.99 | G43: 9284353.65 | H43: No | I43: Yes | J43: Yes | K43: 0.2
A44: 1079 | B44: 2007-03-10 | C44: 5.264887064 | D44: 7 | E44: 483051 | F44: 10.99 | G44: 5308730.49 | H44: No | I44: Yes | J44: Yes | K44: 0.2
A45: 1079 | B45: 2012-01-23 | C45: 0.3915126626 | D45: 14 | E45: 271821 | F45: 23.99 | G45: 6520985.79 | H45: Yes | I45: Yes | J45: No | K45: 0.15
A46: 1081 | B46: 2005-03-02 | C46: 7.285420945 | D46: 14 | E46: 132674 | F46: 15.99 | G46: 2121457.26 | H46: No | I46: Yes | J46: Yes | K46: 0.2
A47: 1085 | B47: 2009-07-03 | C47: 2.948665298 | D47: 9 | E47: 127515 | F47: 7.99 | G47: 1018844.85 | H47: No | I47: No | J47: No | K47: 0.09
A48: 1085 | B48: 2006-10-14 | C48: 5.667351129 | D48: 7 | E48: 233394 | F48: 15.99 | G48: 3731970.06 | H48: No | I48: Yes | J48: Yes | K48: 0.2
A49: 1086 | B49: 2007-10-18 | C49: 4.657084189 | D49: 19 | E49: 207590 | F49: 3.99 | G49: 828284.1 | H49: No | I49: Yes | J49: No | K49: 0.15
A50: 1095 | B50: 2009-11-07 | C50: 2.600958248 | D50: 15 | E50: 51705 | F50: 15.99 | G50: 826762.95 | H50: No | I50: Yes | J50: No | K50: 0.15
A51: 1096 | B51: 2004-11-04 | C51: 7.608487337 | D51: 21 | E51: 213641 | F51: 3.99 | G51: 852427.59 | H51: No | I51: Yes | J51: No | K51: 0.2
A52: 1097 | B52: 2002-01-12 | C52: 10.4202601 | D52: 18 | E52: 113257 | F52: 7.99 | G52: 904923.43 | H52: No | I52: Yes | J52: No | K52: 0.2
A53: 1100 | B53: 2001-09-17 | C53: 10.74058864 | D53: 3 | E53: 457774 | F53: 5.99 | G53: 2742066.26 | H53: No | I53: Yes | J53: Yes | K53: 0.2
A54: 1100 | B54: 2001-04-27 | C54: 11.1321013 | D54: 11 | E54: 416639 | F54: 12.99 | G54: 5412140.61 | H54: No | I54: Yes | J54: Yes | K54: 0.2
A55: 1105 | B55: 2011-05-03 | C55: 1.117043121 | D55: 10 | E55: 279860 | F55: 2.99 | G55: 836781.4 | H55: Yes | I55: Yes | J55: No | K55: 0.09
A56: 1109 | B56: 2008-05-20 | C56: 4.06844627 | D56: 16 | E56: 226985 | F56: 15.99 | G56: 3629490.15 | H56: No | I56: Yes | J56: No | K56: 0.15
A57: 1110 | B57: 2001-09-22 | C57: 10.72689938 | D57: 20 | E57: 232730 | F57: 5.99 | G57: 1394052.7 | H57: No | I57: Yes | J57: Yes | K57: 0.2
A58: 1110 | B58: 2009-10-27 | C58: 2.631074606 | D58: 24 | E58: 251515 | F58: 10.99 | G58: 2764149.85 | H58: No | I58: Yes | J58: No | K58: 0.15
A59: 1116 | B59: 2011-06-20 | C59: 0.9856262834 | D59: 14 | E59: 249249 | F59: 10.99 | G59: 2739246.51 | H59: Yes | I59: Yes | J59: No | K59: 0.15
A60: 1124 | B60: 2007-05-06 | C60: 5.108829569 | D60: 7 | E60: 253704 | F60: 2.99 | G60: 758574.96 | H60: No | I60: Yes | J60: No | K60: 0.09
A61: 1127 | B61: 2011-06-26 | C61: 0.9691991786 | D61: 1 | E61: 34730 | F61: 15.99 | G61: 555332.7 | H61: No | I61: No | J61: No | K61: 0.09
A62: 1128 | B62: 2006-01-19 | C62: 6.40109514 | D62: 13 | E62: 455584 | F62: 10.99 | G62: 5006868.16 | H62: No | I62: Yes | J62: Yes | K62: 0.2
A63: 1129 | B63: 2011-08-16 | C63: 0.8295687885 | D63: 1 | E63: 292202 | F63: 15.99 | G63: 4672309.98 | H63: No | I63: No | J63: No | K63: 0.09
A64: 1132 | B64: 2009-01-17 | C64: 3.405886379 | D64: 20 | E64: 522747 | F64: 2.99 | G64: 1563013.53 | H64: No | I64: Yes | J64: No | K64: 0.15
A65: 1133 | B65: 2004-01-29 | C65: 8.375085558 | D65: 23 | E65: 434586 | F65: 12.99 | G65: 5645272.14 | H65: No | I65: Yes | J65: Yes | K65: 0.2
A66: 1135 | B66: 2009-06-15 | C66: 2.997946612 | D66: 10 | E66: 5247 | F66: 9.99 | G66: =Number_of_Books_Sold*Sell_Price -> 52417.53 | H66: =IF(AND(Years_Under_Contract<2,Number_of_Books_in_Print>4)=TRUE,"Yes","No") -> No | I66: =IF(OR(Years_Under_Contract>5,Number_of_Books_in_Print>=10)=TRUE,"Yes","No") -> Yes | J66: =IF(AND(Years_Under_Contract>5,OR(Number_of_Books_in_Print>350000,Income_Earned>=1000000))=TRUE,"Yes","No") -> No | K66: =IF(AND(Years_Under_Contract>5,OR(Number_of_Books_in_Print>10,Income_Earned>1000000)),0.2,IF(Number_of_Books_in_Print>10,0.15,0.09)) -> 0.09
A67: 1140 | B67: 2000-04-25 | C67: 12.13689254 | D67: 19 | E67: 590042 | F67: 5.99 | G67: 3534351.58 | H67: No | I67: Yes | J67: Yes | K67: 0.2
A68: 1146 | B68: 2009-01-02 | C68: 3.446954141 | D68: 15 | E68: 510292 | F68: 10.99 | G68: 5608109.08 | H68: No | I68: Yes | J68: No | K68: 0.15
A69: 1147 | B69: 2009-10-30 | C69: 2.622861054 | D69: 13 | E69: 275336 | F69: 12.99 | G69: 3576614.64 | H69: No | I69: Yes | J69: No | K69: 0.15
A70: 1149 | B70: 2004-09-14 | C70: 7.748117728 | D70: 15 | E70: 128092 | F70: 9.99 | G70: 1279639.08 | H70: No | I70: Yes | J70: Yes | K70: 0.2
A71: 1155 | B71: 2004-06-29 | C71: 7.958932238 | D71: 4 | E71: 326167 | F71: 15.99 | G71: 5215410.33 | H71: No | I71: Yes | J71: Yes | K71: 0.2
A72: 1156 | B72: 2000-01-29 | C72: 12.37508556 | D72: 21 | E72: 333542 | F72: 23.99 | G72: 8001672.58 | H72: No | I72: Yes | J72: Yes | K72: 0.2
A73: 1158 | B73: 2008-01-14 | C73: 4.41615332 | D73: 5 | E73: 298230 | F73: 5.99 | G73: 1786397.7 | H73: No | I73: No | J73: No | K73: 0.09
A74: 1158 | B74: 2004-07-01 | C74: 7.953456537 | D74: 3 | E74: 265284 | F74: 10.99 | G74: 2915471.16 | H74: No | I74: Yes | J74: Yes | K74: 0.2
A75: 1162 | B75: 2000-12-03 | C75: 11.52908966 | D75: 11 | E75: 534370 | F75: 3.99 | G75: 2132136.3 | H75: No | I75: Yes | J75: Yes | K75: 0.2
A76: 1164 | B76: 2003-06-14 | C76: 9.002053388 | D76: 21 | E76: 347737 | F76: 9.99 | G76: 3473892.63 | H76: No | I76: Yes | J76: Yes | K76: 0.2
A77: 1164 | B77: 2007-05-12 | C77: 5.092402464 | D77: 1 | E77: 227933 | F77: 10.99 | G77: 2504983.67 | H77: No | I77: Yes | J77: Yes | K77: 0.2
A78: 1168 | B78: 2010-05-03 | C78: 2.116358658 | D78: 23 | E78: 112108 | F78: 2.99 | G78: 335202.92 | H78: No | I78: Yes | J78: No | K78: 0.15
A79: 1170 | B79: 2002-10-19 | C79: 9.653661875 | D79: 9 | E79: 286562 | F79: 7.99 | G79: 2289630.38 | H79: No | I79: Yes | J79: Yes | K79: 0.2
A80: 1171 | B80: 2012-06-06 | C80: 0.0219028063 | D80: 13 | E80: 532758 | F80: 7.99 | G80: 4256736.42 | H80: Yes | I80: Yes | J80: No | K80: 0.15
A81: 1171 | B81: 2001-12-03 | C81: 10.52977413 | D81: 12 | E81: 345313 | F81: 12.99 | G81: 4485615.87 | H81: No | I81: Yes | J81: Yes | K81: 0.2
A82: 1174 | B82: 2006-02-25 | C82: 6.299794661 | D82: 15 | E82: 517922 | F82: 7.99 | G82: 4138196.78 | H82: No | I82: Yes | J82: Yes | K82: 0.2
A83: 1175 | B83: 2002-05-25 | C83: 10.05612594 | D83: 18 | E83: 102223 | F83: 15.99 | G83: 1634545.77 | H83: No | I83: Yes | J83: Yes | K83: 0.2
A84: 1177 | B84: 2005-01-25 | C84: 7.383983573 | D84: 7 | E84: 140897 | F84: 12.99 | G84: 1830252.03 | H84: No | I84: Yes | J84: Yes | K84: 0.2
A85: 1178 | B85: 2008-06-28 | C85: 3.961670089 | D85: 8 | E85: 296154 | F85: 2.99 | G85: 885500.46 | H85: No | I85: No | J85: No | K85: 0.09
A86: 1180 | B86: 2011-08-31 | C86: 0.7885010267 | D86: 24 | E86: 545464 | F86: 15.99 | G86: 8721969.36 | H86: Yes | I86: Yes | J86: No | K86: 0.15
A87: 1180 | B87: 2006-04-11 | C87: 6.176591376 | D87: 10 | E87: 411812 | F87: 7.99 | G87: 3290377.88 | H87: No | I87: Yes | J87: Yes | K87: 0.2
A88: 1181 | B88: 2002-04-13 | C88: 10.17111567 | D88: 1 | E88: 93331 | F88: 9.99 | G88: 932376.69 | H88: No | I88: Yes | J88: No | K88: 0.09
A89: 1186 | B89: 2010-03-16 | C89: 2.247775496 | D89: 8 | E89: 12753 | F89: 5.99 | G89: 76390.47 | H89: No | I89: No | J89: No | K89: 0.09
A90: 1187 | B90: 2003-12-20 | C90: 8.484599589 | D90: 19 | E90: 464156 | F90: 7.99 | G90: 3708606.44 | H90: No | I90: Yes | J90: Yes | K90: 0.2
A91: 1188 | B91: 2002-04-09 | C91: 10.18206708 | D91: 6 | E91: 659893 | F91: 5.99 | G91: 3952759.07 | H91: No | I91: Yes | J91: Yes | K91: 0.2
A92: 1189 | B92: 2001-10-17 | C92: 10.65845311 | D92: 6 | E92: 289753 | F92: 3.99 | G92: 1156114.47 | H92: No | I92: Yes | J92: Yes | K92: 0.2
A93: 1190 | B93: 2003-12-07 | C93: 8.52019165 | D93: 5 | E93: 201152 | F93: 2.99 | G93: 601444.48 | H93: No | I93: Yes | J93: No | K93: 0.09
A94: 1193 | B94: 2011-06-12 | C94: 1.00752909 | D94: 24 | E94: 237114 | F94: 2.99 | G94: 708970.86 | H94: Yes | I94: Yes | J94: No | K94: 0.15
A95: 1194 | B95: 2006-06-24 | C95: 5.973990418 | D95: 12 | E95: 39296 | F95: 10.99 | G95: 431863.04 | H95: No | I95: Yes | J95: No | K95: 0.2
A96: 1195 | B96: 2007-06-30 | C96: 4.958247775 | D96: 14 | E96: 420731 | F96: 15.99 | G96: 6727488.69 | H96: No | I96: Yes | J96: No | K96: 0.15
A97: 1196 | B97: 2010-05-03 | C97: 2.116358658 | D97: 11 | E97: 337317 | F97: 12.99 | G97: 4381747.83 | H97: No | I97: Yes | J97: No | K97: 0.15
A98: 1198 | B98: 2001-07-23 | C98: 10.89390828 | D98: 15 | E98: 291960 | F98: 7.99 | G98: 2332760.4 | H98: No | I98: Yes | J98: Yes | K98: 0.2
A99: 1199 | B99: 2004-09-04 | C99: 7.775496235 | D99: 19 | E99: 417856 | F99: 12.99 | G99: 5427949.44 | H99: No | I99: Yes | J99: Yes | K99: 0.2
A100: 1202 | B100: 2008-09-22 | C100: 3.726214921 | D100: 20 | E100: 15768 | F100: 2.99 | G100: 47146.32 | H100: No | I100: Yes | J100: No | K100: 0.15
A101: 1202 | B101: 2004-01-22 | C101: 8.394250513 | D101: 19 | E101: 439551 | F101: 9.99 | G101: 4391114.49 | H101: No | I101: Yes | J101: Yes | K101: 0.2
A102: 1205 | B102: 2008-06-16 | C102: 3.994524298 | D102: 2 | E102: 386692 | F102: 5.99 | G102: 2316285.08 | H102: No | I102: No | J102: No | K102: 0.09
A103: 1209 | B103: 2008-07-08 | C103: 3.934291581 | D103: 12 | E103: 492342 | F103: 10.99 | G103: 5410838.58 | H103: No | I103: Yes | J103: No | K103: 0.15
A104: 1211 | B104: 2001-10-24 | C104: 10.63928816 | D104: 20 | E104: 645052 | F104: 2.99 | G104: 1928705.48 | H104: No | I104: Yes | J104: Yes | K104: 0.2
A105: 1216 | B105: 2008-10-25 | C105: 3.635865845 | D105: 14 | E105: 442285 | F105: 10.99 | G105: 4860712.15 | H105: No | I105: Yes | J105: No | K105: 0.15
A106: 1217 | B106: 2007-03-01 | C106: 5.289527721 | D106: 13 | E106: 637136 | F106: 12.99 | G106: 8276396.64 | H106: No | I106: Yes | J106: Yes | K106: 0.2
A107: 1225 | B107: 2010-05-17 | C107: 2.078028747 | D107: 1 | E107: 216279 | F107: 23.99 | G107: 5188533.21 | H107: No | I107: No | J107: No | K107: 0.09
A108: 1225 | B108: 2003-08-11 | C108: 8.843258042 | D108: 19 | E108: 253674 | F108: 9.99 | G108: 2534203.26 | H108: No | I108: Yes | J108: Yes | K108: 0.2
A109: 1226 | B109: 2000-09-03 | C109: 11.77823409 | D109: 2 | E109: 155218 | F109: 12.99 | G109: 2016281.82 | H109: No | I109: Yes | J109: Yes | K109: 0.2
A110: 1230 | B110: 2000-07-17 | C110: 11.90965092 | D110: 7 | E110: 663594 | F110: 9.99 | G110: 6629304.06 | H110: No | I110: Yes | J110: Yes | K110: 0.2
A111: 1230 | B111: 2001-08-29 | C111: 10.7926078 | D111: 3 | E111: 401563 | F111: 9.99 | G111: 4011614.37 | H111: No | I111: Yes | J111: Yes | K111: 0.2
A112: 1232 | B112: 2002-12-08 | C112: 9.516769336 | D112: 13 | E112: 125672 | F112: 2.99 | G112: 375759.28 | H112: No | I112: Yes | J112: No | K112: 0.2
A113: 1234 | B113: 2000-03-19 | C113: 12.23819302 | D113: 7 | E113: 324523 | F113: 15.99 | G113: 5189122.77 | H113: No | I113: Yes | J113: Yes | K113: 0.2
A114: 1235 | B114: 2005-02-14 | C114: 7.329226557 | D114: 16 | E114: 324362 | F114: 12.99 | G114: 4213462.38 | H114: No | I114: Yes | J114: Yes | K114: 0.2
A115: 1236 | B115: 2004-02-01 | C115: 8.366872005 | D115: 21 | E115: 50258 | F115: 2.99 | G115: 150271.42 | H115: No | I115: Yes | J115: No | K115: 0.2
A116: 1237 | B116: 2010-01-08 | C116: 2.431211499 | D116: 20 | E116: 150537 | F116: 12.99 | G116: 1955475.63 | H116: No | I116: Yes | J116: No | K116: 0.15
A117: 1238 | B117: 2005-05-04 | C117: 7.112936345 | D117: 4 | E117: 515774 | F117: 2.99 | G117: 1542164.26 | H117: No | I117: Yes | J117: Yes | K117: 0.2
A118: 1239 | B118: 2001-07-10 | C118: 10.92950034 | D118: 16 | E118: 70232 | F118: 12.99 | G118: 912313.68 | H118: No | I118: Yes | J118: No | K118: 0.2
A119: 1241 | B119: 2004-12-24 | C119: 7.471594798 | D119: 8 | E119: 471625 | F119: 10.99 | G119: 5183158.75 | H119: No | I119: Yes | J119: Yes | K119: 0.2
A120: 1241 | B120: 2000-09-14 | C120: 11.74811773 | D120: 6 | E120: 354867 | F120: 12.99 | G120: 4609722.33 | H120: No | I120: Yes | J120: Yes | K120: 0.2
A121: 1243 | B121: 2005-11-20 | C121: 6.565366188 | D121: 1 | E121: 429724 | F121: 15.99 | G121: 6871286.76 | H121: No | I121: Yes | J121: Yes | K121: 0.2
A122: 1244 | B122: 2010-11-22 | C122: 1.560574949 | D122: 4 | E122: 238155 | F122: 2.99 | G122: 712083.45 | H122: No | I122: No | J122: No | K122: 0.09
A123: 1245 | B123: 2002-04-29 | C123: 10.12731006 | D123: 10 | E123: 504049 | F123: 2.99 | G123: 1507106.51 | H123: No | I123: Yes | J123: Yes | K123: 0.2
A124: 1246 | B124: 2009-11-06 | C124: 2.603696099 | D124: 23 | E124: 632994 | F124: 2.99 | G124: 1892652.06 | H124: No | I124: Yes | J124: No | K124: 0.15
A125: 1254 | B125: 2001-04-08 | C125: 11.18412047 | D125: 23 | E125: 268080 | F125: 3.99 | G125: 1069639.2 | H125: No | I125: Yes | J125: Yes | K125: 0.2
A126: 1256 | B126: 2005-06-07 | C126: 7.019849418 | D126: 3 | E126: 573735 | F126: 2.99 | G126: 1715467.65 | H126: No | I126: Yes | J126: Yes | K126: 0.2
A127: 1258 | B127: 2010-11-26 | C127: 1.549623546 | D127: 1 | E127: 489499 | F127: 23.99 | G127: 11743081.01 | H127: No | I127: No | J127: No | K127: 0.09
A128: 1262 | B128: 2008-08-09 | C128: 3.846680356 | D128: 14 | E128: 265481 | F128: 2.99 | G128: 793788.19 | H128: No | I128: Yes | J128: No | K128: 0.15
A129: 1265 | B129: 2009-06-24 | C129: 2.973305955 | D129: 16 | E129: 165210 | F129: 9.99 | G129: 1650447.9 | H129: No | I129: Yes | J129: No | K129: 0.15
A130: 1267 | B130: 2005-01-07 | C130: 7.433264887 | D130: 18 | E130: 110821 | F130: 9.99 | G130: =Number_of_Books_Sold*Sell_Price -> 1107101.79 | H130: =IF(AND(Years_Under_Contract<2,Number_of_Books_in_Print>4)=TRUE,"Yes","No") -> No | I130: =IF(OR(Years_Under_Contract>5,Number_of_Books_in_Print>=10)=TRUE,"Yes","No") -> Yes | J130: =IF(AND(Years_Under_Contract>5,OR(Number_of_Books_in_Print>350000,Income_Earned>=1000000))=TRUE,"Yes","No") -> Yes | K130: =IF(AND(Years_Under_Contract>5,OR(Number_of_Books_in_Print>10,Income_Earned>1000000)),0.2,IF(Number_of_Books_in_Print>10,0.15,0.09)) -> 0.2
A131: 1272 | B131: 2009-07-27 | C131: 2.882956879 | D131: 20 | E131: 514158 | F131: 23.99 | G131: 12334650.42 | H131: No | I131: Yes | J131: No | K131: 0.15
A132: 1273 | B132: 2000-05-05 | C132: 12.10951403 | D132: 12 | E132: 461793 | F132: 7.99 | G132: 3689726.07 | H132: No | I132: Yes | J132: Yes | K132: 0.2
A133: 1275 | B133: 2008-04-09 | C133: 4.180698152 | D133: 19 | E133: 305300 | F133: 2.99 | G133: 912847 | H133: No | I133: Yes | J133: No | K133: 0.15
A134: 1275 | B134: 2009-08-19 | C134: 2.819986311 | D134: 2 | E134: 229018 | F134: 2.99 | G134: 684763.82 | H134: No | I134: No | J134: No | K134: 0.09
A135: 1276 | B135: 2011-04-30 | C135: 1.125256674 | D135: 19 | E135: 30490 | F135: 15.99 | G135: 487535.1 | H135: Yes | I135: Yes | J135: No | K135: 0.15
A136: 1276 | B136: 2009-01-25 | C136: 3.383983573 | D136: 14 | E136: 233741 | F136: 9.99 | G136: 2335072.59 | H136: No | I136: Yes | J136: No | K136: 0.15
A137: 1276 | B137: 2007-08-27 | C137: 4.79945243 | D137: 22 | E137: 489466 | F137: 12.99 | G137: 6358163.34 | H137: No | I137: Yes | J137: No | K137: 0.15
A138: 1277 | B138: 2004-12-06 | C138: 7.520876112 | D138: 11 | E138: 97109 | F138: 7.99 | G138: 775900.91 | H138: No | I138: Yes | J138: No | K138: 0.2
A139: 1280 | B139: 2006-09-11 | C139: 5.757700205 | D139: 10 | E139: 117698 | F139: 10.99 | G139: 1293501.02 | H139: No | I139: Yes | J139: Yes | K139: 0.2
A140: 1281 | B140: 2009-04-19 | C140: 3.154004107 | D140: 9 | E140: 541856 | F140: 5.99 | G140: 3245717.44 | H140: No | I140: No | J140: No | K140: 0.09
A141: 1284 | B141: 2012-06-09 | C141: 0.01368925394 | D141: 18 | E141: 416726 | F141: 10.99 | G141: 4579818.74 | H141: Yes | I141: Yes | J141: No | K141: 0.15
A142: 1288 | B142: 2000-10-31 | C142: 11.61943874 | D142: 12 | E142: 141949 | F142: 7.99 | G142: 1134172.51 | H142: No | I142: Yes | J142: Yes | K142: 0.2
A143: 1288 | B143: 2005-06-28 | C143: 6.962354552 | D143: 10 | E143: 286613 | F143: 3.99 | G143: 1143585.87 | H143: No | I143: Yes | J143: Yes | K143: 0.2
A144: 1288 | B144: 2008-11-11 | C144: 3.589322382 | D144: 10 | E144: 376904 | F144: 7.99 | G144: 3011462.96 | H144: No | I144: Yes | J144: No | K144: 0.09
A145: 1290 | B145: 2003-12-20 | C145: 8.484599589 | D145: 7 | E145: 536516 | F145: 12.99 | G145: 6969342.84 | H145: No | I145: Yes | J145: Yes | K145: 0.2
A146: 1291 | B146: 2008-11-21 | C146: 3.561943874 | D146: 25 | E146: 588657 | F146: 2.99 | G146: 1760084.43 | H146: No | I146: Yes | J146: No | K146: 0.15
A147: 1300 | B147: 2001-09-15 | C147: 10.74606434 | D147: 22 | E147: 554316 | F147: 5.99 | G147: 3320352.84 | H147: No | I147: Yes | J147: Yes | K147: 0.2
A148: 1301 | B148: 2001-12-13 | C148: 10.50239562 | D148: 9 | E148: 557976 | F148: 10.99 | G148: 6132156.24 | H148: No | I148: Yes | J148: Yes | K148: 0.2
A149: 1304 | B149: 2003-03-25 | C149: 9.223819302 | D149: 9 | E149: 529837 | F149: 2.99 | G149: 1584212.63 | H149: No | I149: Yes | J149: Yes | K149: 0.2
A150: 1310 | B150: 2007-05-17 | C150: 5.07871321 | D150: 11 | E150: 496885 | F150: 7.99 | G150: 3970111.15 | H150: No | I150: Yes | J150: Yes | K150: 0.2
A151: 1314 | B151: 2002-08-13 | C151: 9.837097878 | D151: 2 | E151: 24857 | F151: 12.99 | G151: 322892.43 | H151: No | I151: Yes | J151: No | K151: 0.09
A152: 1315 | B152: 2011-12-29 | C152: 0.4599589322 | D152: 20 | E152: 4255 | F152: 9.99 | G152: 42507.45 | H152: Yes | I152: Yes | J152: No | K152: 0.15
A153: 1316 | B153: 2011-08-07 | C153: 0.8542094456 | D153: 6 | E153: 567466 | F153: 3.99 | G153: 2264189.34 | H153: Yes | I153: No | J153: No | K153: 0.09
A154: 1318 | B154: 2005-07-24 | C154: 6.891170431 | D154: 10 | E154: 454193 | F154: 2.99 | G154: 1358037.07 | H154: No | I154: Yes | J154: Yes | K154: 0.2
A155: 1318 | B155: 2011-02-06 | C155: 1.352498289 | D155: 1 | E155: 291612 | F155: 2.99 | G155: 871919.88 | H155: No | I155: No | J155: No | K155: 0.09
A156: 1319 | B156: 2010-10-04 | C156: 1.694729637 | D156: 16 | E156: 434312 | F156: 12.99 | G156: 5641712.88 | H156: Yes | I156: Yes | J156: No | K156: 0.15
A157: 1319 | B157: 2005-12-17 | C157: 6.491444216 | D157: 4 | E157: 577207 | F157: 3.99 | G157: 2303055.93 | H157: No | I157: Yes | J157: Yes | K157: 0.2
A158: 1320 | B158: 2011-06-09 | C158: 1.015742642 | D158: 10 | E158: 401992 | F158: 3.99 | G158: 1603948.08 | H158: Yes | I158: Yes | J158: No | K158: 0.09
A159: 1322 | B159: 2006-07-17 | C159: 5.911019849 | D159: 2 | E159: 589764 | F159: 5.99 | G159: 3532686.36 | H159: No | I159: Yes | J159: Yes | K159: 0.2
A160: 1323 | B160: 2008-12-01 | C160: 3.534565366 | D160: 22 | E160: 681022 | F160: 7.99 | G160: 5441365.78 | H160: No | I160: Yes | J160: No | K160: 0.15
A161: 1324 | B161: 2007-12-17 | C161: 4.492813142 | D161: 23 | E161: 465514 | F161: 3.99 | G161: 1857400.86 | H161: No | I161: Yes | J161: No | K161: 0.15
A162: 1325 | B162: 2010-12-12 | C162: 1.505817933 | D162: 11 | E162: 286408 | F162: 2.99 | G162: 856359.92 | H162: Yes | I162: Yes | J162: No | K162: 0.15
A163: 1326 | B163: 2010-03-02 | C163: 2.286105407 | D163: 15 | E163: 124618 | F163: 7.99 | G163: 995697.82 | H163: No | I163: Yes | J163: No | K163: 0.15
A164: 1326 | B164: 2006-07-22 | C164: 5.897330595 | D164: 19 | E164: 52308 | F164: 2.99 | G164: 156400.92 | H164: No | I164: Yes | J164: No | K164: 0.2
A165: 1329 | B165: 2004-01-13 | C165: 8.41889117 | D165: 25 | E165: 270438 | F165: 3.99 | G165: 1079047.62 | H165: No | I165: Yes | J165: Yes | K165: 0.2
A166: 1330 | B166: 2006-03-04 | C166: 6.280629706 | D166: 6 | E166: 34355 | F166: 7.99 | G166: 274496.45 | H166: No | I166: Yes | J166: No | K166: 0.09
A167: 1331 | B167: 2002-04-27 | C167: 10.13278576 | D167: 17 | E167: 690169 | F167: 9.99 | G167: 6894788.31 | H167: No | I167: Yes | J167: Yes | K167: 0.2
A168: 1334 | B168: 2006-01-25 | C168: 6.384668036 | D168: 19 | E168: 490136 | F168: 12.99 | G168: 6366866.64 | H168: No | I168: Yes | J168: Yes | K168: 0.2
A169: 1340 | B169: 2009-07-27 | C169: 2.882956879 | D169: 10 | E169: 257087 | F169: 7.99 | G169: 2054125.13 | H169: No | I169: Yes | J169: No | K169: 0.09
A170: 1340 | B170: 2002-09-29 | C170: 9.708418891 | D170: 7 | E170: 623532 | F170: 7.99 | G170: 4982020.68 | H170: No | I170: Yes | J170: Yes | K170: 0.2
A171: 1341 | B171: 2006-07-29 | C171: 5.87816564 | D171: 20 | E171: 540059 | F171: 2.99 | G171: 1614776.41 | H171: No | I171: Yes | J171: Yes | K171: 0.2
A172: 1342 | B172: 2000-02-19 | C172: 12.31759069 | D172: 18 | E172: 74509 | F172: 3.99 | G172: 297290.91 | H172: No | I172: Yes | J172: No | K172: 0.2
A173: 1342 | B173: 2008-02-25 | C173: 4.301163587 | D173: 12 | E173: 229728 | F173: 2.99 | G173: 686886.72 | H173: No | I173: Yes | J173: No | K173: 0.15
A174: 1344 | B174: 2006-08-16 | C174: 5.828884326 | D174: 9 | E174: 220720 | F174: 3.99 | G174: 880672.8 | H174: No | I174: Yes | J174: No | K174: 0.09
A175: 1346 | B175: 2007-07-05 | C175: 4.944558522 | D175: 6 | E175: 17314 | F175: 10.99 | G175: 190280.86 | H175: No | I175: No | J175: No | K175: 0.09
A176: 1348 | B176: 2010-07-17 | C176: 1.911019849 | D176: 19 | E176: 254150 | F176: 3.99 | G176: 1014058.5 | H176: Yes | I176: Yes | J176: No | K176: 0.15
A177: 1351 | B177: 2011-04-30 | C177: 1.125256674 | D177: 23 | E177: 212408 | F177: 3.99 | G177: 847507.92 | H177: Yes | I177: Yes | J177: No | K177: 0.15
A178: 1352 | B178: 2000-11-17 | C178: 11.57289528 | D178: 23 | E178: 138970 | F178: 2.99 | G178: 415520.3 | H178: No | I178: Yes | J178: No | K178: 0.2
A179: 1355 | B179: 2009-05-26 | C179: 3.052703628 | D179: 6 | E179: 479278 | F179: 10.99 | G179: 5267265.22 | H179: No | I179: No | J179: No | K179: 0.09
A180: 1356 | B180: 2003-06-23 | C180: 8.977412731 | D180: 23 | E180: 273007 | F180: 9.99 | G180: 2727339.93 | H180: No | I180: Yes | J180: Yes | K180: 0.2
A181: 1357 | B181: 2002-11-04 | C181: 9.609856263 | D181: 1 | E181: 78094 | F181: 7.99 | G181: 623971.06 | H181: No | I181: Yes | J181: No | K181: 0.09
A182: 1359 | B182: 2005-11-15 | C182: 6.579055441 | D182: 20 | E182: 542953 | F182: 9.99 | G182: 5424100.47 | H182: No | I182: Yes | J182: Yes | K182: 0.2
A183: 1360 | B183: 2012-11-21 | C183: -0.4380561259 | D183: 4 | E183: 117093 | F183: 12.99 | G183: 1521038.07 | H183: No | I183: No | J183: No | K183: 0.09
A184: 1361 | B184: 2011-03-19 | C184: 1.240246407 | D184: 17 | E184: 79360 | F184: 2.99 | G184: 237286.4 | H184: Yes | I184: Yes | J184: No | K184: 0.15
A185: 1364 | B185: 2007-07-02 | C185: 4.952772074 | D185: 3 | E185: 7423 | F185: 10.99 | G185: 81578.77 | H185: No | I185: No | J185: No | K185: 0.09
A186: 1364 | B186: 2000-09-13 | C186: 11.75085558 | D186: 16 | E186: 516313 | F186: 2.99 | G186: 1543775.87 | H186: No | I186: Yes | J186: Yes | K186: 0.2
A187: 1366 | B187: 2004-03-06 | C187: 8.273785079 | D187: 19 | E187: 132118 | F187: 12.99 | G187: 1716212.82 | H187: No | I187: Yes | J187: Yes | K187: 0.2
A188: 1370 | B188: 2003-03-26 | C188: 9.221081451 | D188: 3 | E188: 674022 | F188: 5.99 | G188: 4037391.78 | H188: No | I188: Yes | J188: Yes | K188: 0.2
A189: 1372 | B189: 2003-03-23 | C189: 9.229295003 | D189: 10 | E189: 479715 | F189: 3.99 | G189: 1914062.85 | H189: No | I189: Yes | J189: Yes | K189: 0.2
A190: 1373 | B190: 2011-07-08 | C190: 0.9363449692 | D190: 1 | E190: 618159 | F190: 7.99 | G190: 4939090.41 | H190: No | I190: No | J190: No | K190: 0.09
A191: 1374 | B191: 2006-05-05 | C191: 6.110882957 | D191: 23 | E191: 482732 | F191: 5.99 | G191: 2891564.68 | H191: No | I191: Yes | J191: Yes | K191: 0.2
A192: 1375 | B192: 2008-02-24 | C192: 4.303901437 | D192: 24 | E192: 328940 | F192: 10.99 | G192: 3615050.6 | H192: No | I192: Yes | J192: No | K192: 0.15
A193: 1376 | B193: 2009-10-26 | C193: 2.633812457 | D193: 12 | E193: 233961 | F193: 7.99 | G193: 1869348.39 | H193: No | I193: Yes | J193: No | K193: 0.15
A194: 1376 | B194: 2000-05-23 | C194: 12.06023272 | D194: 3 | E194: 592169 | F194: 10.99 | G194: =Number_of_Books_Sold*Sell_Price -> 6507937.31 | H194: =IF(AND(Years_Under_Contract<2,Number_of_Books_in_Print>4)=TRUE,"Yes","No") -> No | I194: =IF(OR(Years_Under_Contract>5,Number_of_Books_in_Print>=10)=TRUE,"Yes","No") -> Yes | J194: =IF(AND(Years_Under_Contract>5,OR(Number_of_Books_in_Print>350000,Income_Earned>=1000000))=TRUE,"Yes","No") -> Yes | K194: =IF(AND(Years_Under_Contract>5,OR(Number_of_Books_in_Print>10,Income_Earned>1000000)),0.2,IF(Number_of_Books_in_Print>10,0.15,0.09)) -> 0.2
A195: 1377 | B195: 2001-01-21 | C195: 11.39493498 | D195: 4 | E195: 687237 | F195: 9.99 | G195: 6865497.63 | H195: No | I195: Yes | J195: Yes | K195: 0.2
A196: 1378 | B196: 2003-11-28 | C196: 8.544832307 | D196: 6 | E196: 434114 | F196: 2.99 | G196: 1298000.86 | H196: No | I196: Yes | J196: Yes | K196: 0.2
A197: 1382 | B197: 2006-05-07 | C197: 6.105407255 | D197: 22 | E197: 147289 | F197: 2.99 | G197: 440394.11 | H197: No | I197: Yes | J197: No | K197: 0.2
A198: 1382 | B198: 2005-09-06 | C198: 6.770704997 | D198: 14 | E198: 71012 | F198: 2.99 | G198: 212325.88 | H198: No | I198: Yes | J198: No | K198: 0.2
A199: 1384 | B199: 2012-08-15 | C199: -0.1697467488 | D199: 11 | E199: 590216 | F199: 12.99 | G199: 7666905.84 | H199: Yes | I199: Yes | J199: No | K199: 0.15
A200: 1385 | B200: 2011-09-27 | C200: 0.7145790554 | D200: 20 | E200: 374015 | F200: 7.99 | G200: 2988379.85 | H200: Yes | I200: Yes | J200: No | K200: 0.15
... 874 more rows

Sheet Sheet3
A1: 1 | B1: Jun
A2: 2 | B2: Jul
A3: 3 | B3: Aug
A4: 4 | B4: Sep
A5: 5 | B5: Oct
A6: 6 | B6: Nov
A7: 7 | B7: Dec
A8: 8 | B8: Jan
A9: 9 | B9: Feb
A10: 10 | B10: Mar
A11: 11 | B11: Apr
A12: 12 | B12: May
A13: 13 | B13: Jun
A14: 14 | B14: Jul
A15: 15 | B15: Aug
A16: 16 | B16: Sep
A17: 17 | B17: Oct
A18: 18 | B18: Nov

Sheet Sheet5
A1: fri | B1: 68
A2: sat | B2: 101
A3: sun | B3: 134
A4: mon | B4: 167
A5: tue | B5: 200
A6: wed | B6: 233
A7: thu | B7: 266
A8: fri | B8: 299
A9: sat | B9: 332
A10: sun | B10: 365
A11: mon | B11: 398
A12: tue | B12: 431
A13: wed | B13: 464
A14: thu | B14: 497
A15: fri | B15: 530
A16: sat | B16: 563
A17: sun | B17: 596
